bitfinex-derivatives/quotes_BTCF0:USTF0_20250814
["timestamp","ask_amount","ask_price","bid_price","bid_amount"]
[1755192180270,0.0781169,118030.0,118020.0,1.66739248]
[1755192180474,0.1266969,118030.0,118020.0,1.66739248]
[1755192180777,0.1266969,118030.0,118020.0,1.66723248]
[1755192181078,0.4108569,118030.0,118020.0,1.66723248]
[1755192181276,0.0781169,118030.0,118020.0,1.66723248]
[1755192181883,0.1266969,118030.0,118020.0,1.66723248]
[1755192182175,0.0781169,118030.0,118020.0,1.66723248]
[1755192182580,0.10856746,118030.0,118020.0,1.66723248]
[1755192182783,0.10856746,118030.0,118020.0,1.80833248]
[1755192183079,0.15714746,118030.0,118020.0,1.80833248]
[1755192183274,0.10856746,118030.0,118020.0,1.80833248]
[1755192183481,0.002,118030.0,118020.0,1.80833248]
[1755192183869,0.002,118030.0,118020.0,2.31097029]
[1755192184065,0.002,118030.0,118020.0,1.80833248]
[1755192184482,0.002,118030.0,118020.0,2.31097029]
[1755192184781,0.001,118030.0,118020.0,1.80833248]
[1755192185078,0.12468943,118040.0,118020.0,2.06240488]
[1755192185271,0.12468943,118040.0,118030.0,0.94812321]
[1755192186479,0.12468943,118040.0,118030.0,1.45076102]
[1755192186666,0.12568943,118040.0,118030.0,0.94812321]
[1755192186873,0.12568943,118040.0,118030.0,1.78160321]
[1755192187074,0.47923524,118040.0,118030.0,1.78160321]
[1755192187267,0.62178524,118040.0,118030.0,1.78160321]
[1755192187479,0.62078524,118040.0,118030.0,1.78160321]
[1755192187982,0.62078524,118040.0,118030.0,1.42076321]
[1755192188277,0.98238524,118040.0,118030.0,1.42072321]
[1755192188481,0.90627581,118040.0,118030.0,1.42172321]
[1755192188775,1.01184327,118040.0,118030.0,1.42172321]
[1755192188981,1.09652147,118040.0,118030.0,1.42272321]
[1755192189184,1.09652147,118040.0,118030.0,0.9200854]
[1755192189382,1.09652147,118040.0,118030.0,0.0866854]
[1755192189584,1.09652147,118040.0,118030.0,0.9200454]
[1755192189885,1.09652147,118040.0,118030.0,1.42268321]
[1755192190074,1.09652147,118040.0,118030.0,0.9200454]
[1755192191187,0.95881921,118040.0,118030.0,0.9180054]
[1755192191370,0.87413381,118040.0,118030.0,0.9180054]
[1755192191789,1.15932381,118040.0,118030.0,0.9180054]
[1755192191989,1.22025013,118040.0,118030.0,0.9180054]
[1755192192377,1.22025013,118040.0,118030.0,0.0846854]
[1755192192684,2.03140162,118040.0,118030.0,0.8680054]
[1755192193082,1.52876381,118040.0,118030.0,0.8680054]
[1755192194890,1.52796381,118040.0,118030.0,0.8680054]
[1755192195088,1.52896381,118040.0,118030.0,0.8680054]
[1755192195388,1.58987068,118040.0,118030.0,0.8680054]
[1755192195589,1.59087068,118040.0,118030.0,0.8679654]
[1755192195980,1.59087068,118040.0,118030.0,0.8680054]
[1755192196181,1.39087068,118040.0,118030.0,0.8680054]
[1755192198592,1.39087068,118040.0,118030.0,1.37064321]
[1755192199088,1.13674528,118040.0,118030.0,1.37064321]
[1755192199289,0.96738268,118040.0,118030.0,1.41804321]
[1755192199482,0.90647581,118040.0,118030.0,1.41804321]
[1755192199880,0.90647581,118040.0,118030.0,1.41884321]
[1755192199881,0.54567581,118040.0,118030.0,1.41884321]
[1755192200086,0.07138581,118040.0,118030.0,2.28228102]
[1755192200686,0.07038581,118040.0,118030.0,2.28228102]
[1755192200876,0.07038581,118040.0,118030.0,1.77964321]
[1755192201689,0.11896581,118040.0,118030.0,1.77964321]
[1755192201885,0.11796581,118040.0,118030.0,0.94552321]
[1755192202185,0.11796581,118040.0,118030.0,1.81152321]
[1755192202402,0.54367581,118040.0,118030.0,1.81152321]
[1755192202590,0.54367581,118040.0,118030.0,1.81352321]
[1755192203086,0.62835391,118040.0,118030.0,0.93284321]
[1755192203282,0.98915391,118040.0,118030.0,0.9199653]
[1755192203677,0.98915391,118040.0,118030.0,0.9219653]
[1755192204193,0.98915391,118040.0,118030.0,1.42460311]
[1755192204391,0.98915391,118040.0,118030.0,0.59132311]
[1755192204692,0.98915391,118040.0,118030.0,0.9199253]
[1755192204891,0.98915391,118040.0,118030.0,0.9179253]
[1755192205991,0.5649553,118030.0,118020.0,0.3387647]
[1755192206190,0.9257553,118030.0,118020.0,1.1720047]
[1755192206888,0.9257553,118030.0,118020.0,1.87897577]
[1755192207090,0.9257553,118030.0,118020.0,1.87893577]
[1755192207392,0.9257553,118030.0,118020.0,1.87993577]
[1755192207691,0.9257553,118030.0,118020.0,1.2029747]
[1755192208188,0.9257553,118030.0,118020.0,1.2039747]
[1755192208688,0.5649553,118030.0,118020.0,1.2519747]
[1755192208889,0.48027,118030.0,118020.0,1.2519747]
[1755192209086,0.48027,118030.0,118020.0,1.95894577]
[1755192209286,0.5649553,118030.0,118020.0,1.95894577]
[1755192209883,0.48027,118030.0,118020.0,1.95894577]
[1755192210496,0.5649553,118030.0,118020.0,1.95894577]
[1755192210794,0.9257553,118030.0,118020.0,1.95894577]
[1755192211197,0.9257553,118030.0,118020.0,1.12574577]
[1755192211495,0.48027,118030.0,118020.0,1.95890577]
[1755192211997,0.9257553,118030.0,118020.0,1.95890577]
[1755192212396,0.48027,118030.0,118020.0,1.95890577]
[1755192213988,0.24418,118030.0,118020.0,1.95890577]
[1755192214190,0.48027,118030.0,118020.0,1.95890577]
[1755192214494,0.5649553,118030.0,118020.0,1.95890577]
[1755192214702,0.48027,118030.0,118020.0,1.95890577]
[1755192216088,0.44675361,118040.0,118030.0,0.1146953]
[1755192216294,0.13280361,118040.0,118030.0,0.86966637]
[1755192217408,0.21748171,118040.0,118030.0,0.86966637]
[1755192217586,0.57828171,118040.0,118030.0,0.86966637]
[1755192217784,0.50335171,118040.0,118030.0,0.86966637]
[1755192217988,0.65090171,118040.0,118030.0,0.1626953]
[1755192218189,1.01170171,118040.0,118030.0,1.70270637]
[1755192218597,0.56622361,118040.0,118030.0,1.70270637]
[1755192218798,0.65090131,118040.0,118030.0,1.70370637]
[1755192218997,0.17063131,118040.0,118030.0,1.70370637]
[1755192219193,0.08595361,118040.0,118030.0,1.70370637]
[1755192219397,0.13280361,118040.0,118030.0,1.70470637]
[1755192220603,0.08595361,118040.0,118030.0,1.70470637]
[1755192221202,0.56622361,118040.0,118030.0,1.70462637]
[1755192221690,0.54741254,118040.0,118030.0,1.70462637]
[1755192221991,0.54741254,118040.0,118030.0,1.98482303]
[1755192223494,0.06714254,118040.0,118030.0,1.98482303]
[1755192223793,0.70464687,118050.0,118030.0,1.98482303]
[1755192223794,0.63300687,118050.0,118040.0,0.1626878]
[1755192224103,0.75442687,118050.0,118040.0,0.86965887]
[1755192224502,0.84107,118050.0,118040.0,0.86965887]
[1755192224702,0.84107,118050.0,118040.0,0.66521925]
[1755192225006,0.84107,118050.0,118040.0,0.70656168]
[1755192225504,0.9257406,118050.0,118040.0,0.70656168]
[1755192225704,0.9257406,118050.0,118040.0,1.53944168]
[1755192228094,1.05331805,118050.0,118040.0,1.53944168]
[1755192228901,1.05331805,118050.0,118040.0,0.20403023]
[1755192229101,1.05331805,118050.0,118040.0,1.53928168]
[1755192229897,0.99241118,118050.0,118040.0,1.53928168]
[1755192233601,1.05334898,118050.0,118040.0,1.53928168]
[1755192234003,0.99241118,118050.0,118040.0,1.49128168]
[1755192234303,0.99241118,118050.0,118040.0,1.53928168]
[1755192234304,1.05334898,118050.0,118040.0,1.53928168]
[1755192234709,1.05334898,118050.0,118040.0,0.65856168]
[1755192235003,0.99241118,118050.0,118040.0,1.49116168]
[1755192235203,1.05334898,118050.0,118040.0,1.49116168]
[1755192235411,1.05334898,118050.0,118040.0,0.98863023]
[1755192235600,1.05334898,118050.0,118040.0,1.49108168]
[1755192236803,1.05334898,118050.0,118040.0,1.53908168]
[1755192237406,1.05334898,118050.0,118040.0,0.98855023]
[1755192237599,1.05334898,118050.0,118040.0,0.98847023]
[1755192238509,1.05334898,118050.0,118040.0,1.03647023]
[1755192238806,1.05334898,118050.0,118040.0,1.53900168]
[1755192239199,0.9866784,118050.0,118040.0,1.53900168]
[1755192239395,0.1625678,118040.0,118030.0,1.12146431]
[1755192239694,0.9185178,118040.0,118030.0,1.73900431]
[1755192240609,0.9185178,118040.0,118030.0,1.77592113]
[1755192240906,0.9185178,118040.0,118030.0,1.77692113]
[1755192241812,0.9794556,118040.0,118030.0,1.77692113]
[1755192242509,0.99841754,118040.0,118030.0,1.74913213]
[1755192242710,0.99841754,118040.0,118030.0,1.70113213]
[1755192243009,0.99841754,118040.0,118030.0,1.74913213]
[1755192244107,0.99841754,118040.0,118030.0,1.64693683]
[1755192244310,0.99841754,118040.0,118030.0,0.81469683]
[1755192244500,0.99841754,118040.0,118030.0,1.64689683]
[1755192244701,0.99841754,118040.0,118030.0,1.69489683]
[1755192247202,0.99841754,118040.0,118030.0,1.19236538]
[1755192247413,0.99841754,118040.0,118030.0,1.69489683]
[1755192248811,0.99841754,118040.0,118030.0,1.69477683]
[1755192249014,0.93747974,118040.0,118030.0,1.69477683]
[1755192249513,0.93747974,118040.0,118030.0,0.27548008]
[1755192249708,0.93747974,118040.0,118030.0,1.56205153]
[1755192249916,0.93747974,118040.0,118030.0,1.05952008]
[1755192250213,0.93747974,118040.0,118030.0,1.56205153]
[1755192250419,0.93747974,118040.0,118030.0,1.56201153]
[1755192250912,1.01367829,118040.0,118030.0,1.56201153]
[1755192251418,0.93747974,118040.0,118030.0,1.60901153]
[1755192251609,0.93747974,118040.0,118030.0,1.60801153]
[1755192252409,0.93747974,118040.0,118030.0,1.60901153]
[1755192252613,0.93747974,118040.0,118030.0,1.61001153]
[1755192253517,0.9985025,118040.0,118030.0,1.61001153]
[1755192256712,0.60065056,118040.0,118030.0,1.61001153]
[1755192256915,0.97954056,118040.0,118030.0,1.59271487]
[1755192257111,0.97954056,118040.0,118030.0,1.59243487]
[1755192257621,0.9185178,118040.0,118030.0,1.42902457]
[1755192257821,0.9185178,118040.0,118030.0,1.43002457]
[1755192258922,0.97953688,118040.0,118030.0,1.43002457]
[1755192259125,0.97953688,118040.0,118030.0,1.43102457]
[1755192259809,0.9185178,118040.0,118030.0,1.50959457]
[1755192261228,0.9185178,118040.0,118030.0,1.00706312]
[1755192261428,0.9185178,118040.0,118030.0,1.50959457]
[1755192261616,0.97953446,118040.0,118030.0,1.50959457]
[1755192263223,0.06101666,118040.0,118030.0,1.88777523]
[1755192263421,0.01301666,118040.0,118030.0,2.78625738]
[1755192263724,0.08723424,118050.0,118040.0,0.2257777]
[1755192264025,0.13424424,118050.0,118040.0,1.5916406]
[1755192264924,0.13424424,118050.0,118040.0,1.5926406]
[1755192265124,0.13424424,118050.0,118040.0,1.5936406]
[1755192265627,0.13424424,118050.0,118040.0,0.73030915]
[1755192266127,0.13424424,118050.0,118040.0,1.2328406]
[1755192267021,0.13424424,118050.0,118040.0,0.73030915]
[1755192267318,0.13424424,118050.0,118040.0,1.5936406]
[1755192268021,0.08723424,118050.0,118040.0,1.5936406]
[1755192268214,0.08723424,118050.0,118040.0,1.8573406]
[1755192269223,0.14214481,118070.0,118060.0,0.0846635]
[1755192269425,0.06594626,118070.0,118060.0,2.04197495]
[1755192270212,0.04701,118070.0,118060.0,2.04197495]
[1755192270621,0.4501663,118070.0,118060.0,2.04197495]
[1755192270830,0.47878,118070.0,118060.0,2.04197495]
[1755192271223,0.5634363,118070.0,118060.0,0.85009495]
[1755192271421,0.5634363,118070.0,118060.0,1.68101495]
[1755192271622,0.9242363,118070.0,118060.0,1.68101495]
[1755192271820,0.5634363,118070.0,118060.0,1.68101495]
[1755192272031,0.9242363,118070.0,118060.0,1.68101495]
[1755192272236,0.9252363,118070.0,118060.0,1.68101495]
[1755192272420,0.47978,118070.0,118060.0,1.68101495]
[1755192272927,0.04901,118070.0,118060.0,2.18291495]
[1755192273127,0.04901,118070.0,118060.0,1.82211495]
[1755192273428,0.15568797,118070.0,118060.0,1.82211495]
[1755192273827,0.67111427,118070.0,118060.0,0.99119495]
[1755192274223,0.67111427,118070.0,118060.0,1.82187495]
[1755192275426,0.47978,118070.0,118060.0,1.82187495]
[1755192275729,0.55590254,118070.0,118060.0,1.82187495]
[1755192277240,0.12513254,118070.0,118060.0,1.82187495]
[1755192277929,0.15568797,118070.0,118060.0,1.82187495]
[1755192279628,0.23179205,118070.0,118060.0,1.82187495]
[1755192279933,0.12411408,118070.0,118060.0,1.82287495]
[1755192280332,0.10889327,118070.0,118060.0,1.82287495]
[1755192280532,0.10789327,118070.0,118060.0,1.82387495]
[1755192283137,0.04701,118070.0,118060.0,1.82387495]
[1755192284132,0.3609,118080.0,118070.0,0.0846565]
[1755192284437,0.0001,118080.0,118070.0,1.2308194]
[1755192284832,0.0001,118080.0,118070.0,1.08908795]
[1755192285231,0.0001,118080.0,118070.0,1.5916194]
[1755192285438,0.0001,118080.0,118070.0,1.08908795]
[1755192286440,0.04711,118080.0,118070.0,1.91888795]
[1755192287235,0.0001,118080.0,118070.0,1.91888795]
[1755192288043,0.10789327,118100.0,118090.0,0.084642]
[1755192288238,0.04701,118100.0,118090.0,1.77765345]
[1755192288743,0.04701,118100.0,118090.0,1.275122]
[1755192289041,0.04701,118100.0,118090.0,1.77765345]
[1755192289235,0.09326,118100.0,118090.0,1.77753345]
[1755192289430,0.36551,118100.0,118090.0,1.77753345]
[1755192289642,0.47978,118100.0,118090.0,1.77753345]
[1755192290035,0.48178,118100.0,118090.0,1.77753345]
[1755192291241,0.05101,118100.0,118090.0,1.91863345]
[1755192292043,0.004,118100.0,118090.0,1.91863345]
[1755192292453,0.004,118100.0,118090.0,1.9480987]
[1755192293042,1e-07,118100.0,118090.0,1.9480987]
[1755192293244,0.42674288,118120.0,118110.0,0.0846277]
[1755192293434,0.74524288,118120.0,118110.0,1.41543915]
[1755192293635,0.50595288,118120.0,118110.0,1.41543915]
[1755192294039,0.42674288,118120.0,118110.0,1.41443915]
[1755192294238,0.67139288,118120.0,118110.0,1.41443915]
[1755192294443,0.67639288,118120.0,118110.0,1.41443915]
[1755192294644,0.31559288,118120.0,118110.0,1.41443915]
[1755192294845,0.07094288,118120.0,118110.0,1.41443915]
[1755192295342,0.02393288,118120.0,118110.0,1.41443915]
[1755192295547,0.00508,118120.0,118110.0,1.43174224]
[1755192295845,0.05183,118120.0,118110.0,1.43174224]
[1755192296048,0.05183,118120.0,118110.0,0.92921079]
[1755192296248,0.05183,118120.0,118110.0,1.43174224]
[1755192297645,0.24096,118120.0,118110.0,0.60246224]
[1755192297850,0.48561,118120.0,118110.0,1.43130224]
[1755192298850,0.48561,118120.0,118110.0,1.69420224]
[1755192299052,0.48561,118120.0,118110.0,1.69416224]
[1755192299750,0.48561,118120.0,118110.0,1.69404224]
[1755192299958,0.48361,118120.0,118110.0,1.69504224]
[1755192300246,0.9290304,118120.0,118110.0,0.60346224]
[1755192300448,1.43236185,118120.0,118110.0,0.01830309]
[1755192300654,1.42936185,118120.0,118110.0,0.93257059]
[1755192300950,0.9260304,118120.0,118110.0,0.93257059]
[1755192301354,0.40763,118120.0,118110.0,1.43510204]
[1755192301552,0.04683,118120.0,118110.0,1.43510204]
[1755192301742,8e-05,118120.0,118110.0,1.43510204]
[1755192302048,8e-05,118120.0,118110.0,1.93763349]
[1755192302344,8e-05,118120.0,118110.0,1.79590204]
[1755192302550,0.3608,118140.0,118130.0,0.0846132]
[1755192302739,0.40755,118140.0,118130.0,1.43248435]
[1755192303141,0.84133,118140.0,118130.0,1.43248435]
[1755192303347,0.925936,118140.0,118130.0,1.43240435]
[1755192303842,0.40855,118140.0,118130.0,1.43240435]
[1755192304047,0.927936,118140.0,118130.0,1.43240435]
[1755192304453,0.927936,118140.0,118130.0,0.60404435]
[1755192304658,0.927936,118140.0,118130.0,0.9298729]
[1755192305952,0.927936,118140.0,118130.0,1.43240435]
[1755192306548,0.927936,118140.0,118130.0,0.1015129]
[1755192306751,0.927936,118140.0,118130.0,0.9127332]
[1755192307147,0.927936,118140.0,118120.0,0.2538484]
[1755192307148,0.5651432,118130.0,118120.0,0.2538484]
[1755192307350,0.9259432,118130.0,118120.0,1.0819284]
[1755192308248,0.9259432,118130.0,118120.0,1.58445985]
[1755192308847,0.9259432,118130.0,118120.0,0.1692299]
[1755192309052,0.9259432,118130.0,118120.0,0.9973099]
[1755192309456,0.5651504,118120.0,118110.0,0.10192889]
[1755192309654,0.9259504,118120.0,118110.0,0.92992889]
[1755192310361,0.9259504,118120.0,118110.0,0.10192889]
[1755192310558,0.9259504,118120.0,118110.0,0.92984889]
[1755192310759,0.9259504,118120.0,118110.0,1.43338034]
[1755192311060,0.9259504,118120.0,118110.0,1.43438034]
[1755192311658,0.66713,118120.0,118110.0,1.43438034]
[1755192311962,0.84133,118120.0,118110.0,1.43438034]
[1755192312457,0.9259503,118120.0,118110.0,1.43438034]
[1755192312653,0.9259503,118120.0,118110.0,1.07294889]
[1755192312854,0.9259503,118120.0,118110.0,1.43426034]
[1755192313255,0.98683357,118120.0,118110.0,1.43426034]
[1755192313455,0.98683357,118120.0,118110.0,1.41695725]
[1755192313861,0.98683357,118120.0,118110.0,0.9143858]
[1755192314062,0.98683357,118120.0,118110.0,1.41691725]
[1755192315463,0.9259503,118120.0,118110.0,1.41691725]
[1755192316258,1.00205438,118120.0,118110.0,1.41691725]
[1755192316458,1.07085166,118120.0,118110.0,1.41691725]
[1755192318170,0.99474758,118120.0,118110.0,1.41691725]
[1755192318554,1.07082692,118120.0,118110.0,1.41691725]
[1755192319159,1.07082692,118120.0,118110.0,0.58915725]
[1755192319465,1.07082692,118120.0,118110.0,1.41651725]
[1755192319868,1.07082692,118120.0,118110.0,1.43343407]
[1755192321560,0.99474758,118120.0,118110.0,1.43343407]
[1755192322064,1.07082692,118120.0,118110.0,0.9138258]
[1755192322471,1.07082692,118120.0,118110.0,1.41635725]
[1755192322862,0.71761692,118120.0,118110.0,1.41635725]
[1755192323268,0.94707909,118120.0,118110.0,1.41635725]
[1755192323473,1.05563909,118120.0,118110.0,1.41635725]
[1755192324159,0.06879728,118120.0,118110.0,2.29735969]
[1755192324362,0.12808804,118130.0,118110.0,2.46660839]
[1755192324363,0.04837,118130.0,118110.0,2.46660839]
[1755192324563,0.04837,118130.0,118120.0,1.4504832]
[1755192325070,0.04837,118130.0,118120.0,0.94795175]
[1755192326071,0.11535418,118130.0,118120.0,0.94795175]
[1755192327565,0.11535418,118130.0,118120.0,0.94895175]
[1755192327765,0.11535418,118130.0,118120.0,0.94995175]
[1755192328874,0.3608,118140.0,118120.0,1.4524832]
[1755192329066,0.3608,118140.0,118130.0,1.41378455]
[1755192329263,0.3608,118140.0,118130.0,1.43113558]
[1755192329465,0.61395151,118150.0,118140.0,0.084606]
[1755192329664,0.84825151,118150.0,118140.0,0.084606]
[1755192329864,0.84825151,118150.0,118140.0,0.58713745]
[1755192330175,0.89662151,118150.0,118140.0,0.58713745]
[1755192330971,0.89762151,118150.0,118140.0,0.58713745]
[1755192331176,0.89862151,118150.0,118140.0,0.11437757]
[1755192331370,0.66432151,118150.0,118140.0,0.61690902]
[1755192331672,0.60343,118150.0,118140.0,0.61690902]
[1755192331873,0.83773,118150.0,118140.0,0.61690902]
[1755192333675,0.60343,118150.0,118140.0,0.61690902]
[1755192333879,0.54927151,118150.0,118140.0,0.61690902]
[1755192334076,0.72268,118150.0,118140.0,0.61690902]
[1755192334478,0.78357151,118150.0,118140.0,0.61690902]
[1755192335081,0.47206151,118150.0,118140.0,0.61690902]
[1755192335375,0.11126151,118150.0,118140.0,0.61690902]
[1755192335773,0.06289151,118150.0,118140.0,0.61690902]
[1755192336573,0.11126151,118150.0,118140.0,0.61690902]
[1755192336774,0.11026151,118150.0,118140.0,0.61690902]
[1755192337280,0.04937,118150.0,118140.0,0.61690902]
[1755192337688,0.10926151,118150.0,118140.0,0.61690902]
[1755192337991,0.04837,118150.0,118140.0,0.61690902]
[1755192338791,0.35988,118150.0,118140.0,0.61690902]
[1755192340785,0.47493,118150.0,118140.0,0.61690902]
[1755192340992,0.63272107,118160.0,118140.0,0.78611622]
[1755192341194,0.04837,118150.0,118140.0,0.72899077]
[1755192341486,0.04837,118150.0,118140.0,2.05708222]
[1755192342288,0.04837,118150.0,118140.0,1.55455077]
[1755192342488,0.04837,118150.0,118140.0,2.19768222]
[1755192343790,0.47006151,118170.0,118150.0,0.7053321]
[1755192343992,0.84825151,118170.0,118160.0,1.93189164]
[1755192344186,0.78736,118170.0,118160.0,1.42936019]
[1755192344391,0.83573,118170.0,118160.0,1.42936019]
[1755192344596,0.47493,118170.0,118160.0,1.42936019]
[1755192344802,0.24063,118170.0,118160.0,1.42936019]
[1755192345088,0.24263,118170.0,118160.0,1.93189164]
[1755192345496,0.30352151,118170.0,118160.0,1.93189164]
[1755192345694,0.53782151,118170.0,118160.0,1.93189164]
[1755192346087,0.53782151,118170.0,118160.0,2.07249164]
[1755192346283,0.18847151,118170.0,118160.0,2.07249164]
[1755192346494,0.0964,118170.0,118160.0,2.07249164]
[1755192346899,0.04937,118170.0,118160.0,2.07249164]
[1755192347195,0.05037,118170.0,118160.0,2.07249164]
[1755192347396,0.05037,118170.0,118160.0,2.43329164]
[1755192347892,0.05037,118170.0,118160.0,2.43297164]
[1755192352294,0.002,118170.0,118160.0,2.43297164]
[1755192354296,0.06089151,118180.0,118170.0,0.2251846]
[1755192354490,0.06089151,118180.0,118170.0,1.08851605]
[1755192354889,0.04687,118180.0,118170.0,1.08851605]
[1755192355492,0.04687,118190.0,118180.0,0.2537214]
[1755192355689,0.04687,118190.0,118180.0,2.04336258]
[1755192355898,0.46438,118190.0,118180.0,2.04336258]
[1755192356194,0.46438,118190.0,118180.0,1.54083113]
[1755192356502,0.46438,118190.0,118180.0,2.04336258]
[1755192357192,0.59161131,118210.0,118180.0,2.04336258]
[1755192357193,0.06089151,118210.0,118190.0,0.3943062]
[1755192357395,0.04687,118210.0,118200.0,3.6990645]
[1755192357698,0.04687,118210.0,118200.0,3.85696096]
[1755192358290,0.10776151,118220.0,118210.0,0.2536571]
[1755192358499,0.10776151,118220.0,118210.0,1.25758855]
[1755192358804,0.06089151,118220.0,118210.0,1.25758855]
[1755192359202,0.04687,118220.0,118210.0,1.25758855]
[1755192359600,0.06099151,118230.0,118210.0,1.51132855]
[1755192359806,0.52537151,118230.0,118220.0,1.77184025]
[1755192360106,0.52537151,118230.0,118220.0,1.78874756]
[1755192360306,0.52537151,118230.0,118220.0,1.92934756]
[1755192360502,0.97151321,118230.0,118220.0,0.74458756]
[1755192360707,1.41315315,118230.0,118220.0,0.10145611]
[1755192361006,0.9116217,118230.0,118220.0,0.92513611]
[1755192361201,0.46548,118230.0,118220.0,1.42766756]
[1755192361403,0.46548,118230.0,118220.0,1.56826756]
[1755192361602,0.46548,118230.0,118220.0,1.92906756]
[1755192362008,0.46548,118230.0,118220.0,1.42653611]
[1755192362403,0.46548,118230.0,118220.0,1.92906756]
[1755192363303,0.46548,118230.0,118220.0,1.9067045]
[1755192363496,0.54155934,118230.0,118220.0,1.9067045]
[1755192364211,0.98690104,118230.0,118220.0,1.04337305]
[1755192364710,0.82628,118230.0,118220.0,1.5459045]
[1755192365506,0.82628,118230.0,118220.0,1.04337305]
[1755192365710,0.9108217,118230.0,118220.0,1.5459045]
[1755192366099,0.82628,118230.0,118220.0,1.5459045]
[1755192366407,0.82628,118230.0,118220.0,1.53543582]
[1755192366408,1.00086611,118230.0,118220.0,1.53543582]
[1755192366904,0.64006611,118230.0,118220.0,1.89623582]
[1755192367504,0.64006611,118230.0,118220.0,1.53543582]
[1755192368412,0.69367247,118230.0,118220.0,1.53543582]
[1755192368605,0.97872974,118230.0,118220.0,1.53467582]
[1755192369011,0.89418814,118230.0,118220.0,1.53467582]
[1755192369914,0.96993925,118230.0,118220.0,1.53467582]
[1755192370314,0.89418814,118230.0,118220.0,1.53467582]
[1755192370817,0.97872984,118230.0,118220.0,1.53467582]
[1755192371008,0.97872984,118230.0,118220.0,1.03214437]
[1755192371222,1.05529208,118230.0,118220.0,0.87449483]
[1755192371512,1.05449208,118230.0,118220.0,0.87449483]
[1755192371711,0.97872984,118230.0,118220.0,1.37702628]
[1755192371911,0.97872984,118230.0,118220.0,1.39392228]
[1755192372818,1.05453003,118230.0,118220.0,1.39392228]
[1755192373313,1.03938242,118230.0,118220.0,1.39392228]
[1755192374512,1.03938242,118230.0,118220.0,0.89139083]
[1755192374912,0.97872984,118230.0,118220.0,1.39392228]
[1755192375811,0.89418814,118230.0,118220.0,1.39392228]
[1755192376112,0.06900814,118230.0,118220.0,1.75552228]
[1755192376319,0.06900814,118230.0,118220.0,2.25805373]
[1755192376511,0.06900814,118230.0,118220.0,1.75552228]
[1755192378622,0.0011,118230.0,118220.0,1.75552228]
[1755192378821,0.0011,118230.0,118220.0,2.39865373]
[1755192379316,0.18126331,118250.0,118240.0,0.0845345]
[1755192379523,0.18126331,118250.0,118240.0,1.9116774]
[1755192379921,0.60959071,118250.0,118240.0,1.40914595]
[1755192380516,0.61459071,118250.0,118240.0,0.9066145]
[1755192380717,0.61459071,118250.0,118240.0,1.40914595]
[1755192381021,0.46938,118250.0,118240.0,1.40914595]
[1755192381224,0.46938,118250.0,118240.0,1.76994595]
[1755192381422,0.46938,118250.0,118240.0,2.2724774]
[1755192381819,0.005,118250.0,118240.0,2.2895675]
[1755192382121,0.40767,118270.0,118240.0,2.4309629]
[1755192382422,0.10455331,118270.0,118260.0,0.95565165]
[1755192382720,0.10455331,118270.0,118260.0,1.79457364]
[1755192382721,0.04387,118270.0,118260.0,1.79457364]
[1755192383328,0.27616,118270.0,118260.0,1.79457364]
[1755192383528,0.27616,118270.0,118260.0,1.29204219]
[1755192383825,0.545893,118270.0,118260.0,0.92344219]
[1755192384016,0.545893,118270.0,118260.0,1.42597364]
[1755192385025,0.92632406,118270.0,118260.0,0.83892199]
[1755192385227,0.98700737,118270.0,118260.0,0.83868199]
[1755192385426,0.98697907,118270.0,118260.0,0.92320219]
[1755192385615,0.92552406,118270.0,118260.0,1.42573364]
[1755192386232,0.48021106,118270.0,118260.0,1.42573364]
[1755192386425,0.56472416,118270.0,118260.0,1.42573364]
[1755192386616,0.48021106,118270.0,118260.0,1.42573364]
[1755192387017,0.04387,118270.0,118260.0,1.42573364]
[1755192387213,0.10611588,118270.0,118260.0,1.78953364]
[1755192387414,0.04546,118270.0,118260.0,1.78953364]
[1755192387819,0.10611588,118270.0,118260.0,1.78953364]
[1755192388219,0.04546,118270.0,118260.0,1.78953364]
[1755192388632,0.10611588,118280.0,118270.0,0.0078]
[1755192388923,0.62178178,118280.0,118270.0,0.59184455]
[1755192389316,0.5611259,118280.0,118270.0,0.0893131]
[1755192389522,0.5611259,118280.0,118270.0,0.59184455]
[1755192389922,0.5611259,118280.0,118270.0,0.61802417]
[1755192392828,0.5611259,118280.0,118270.0,0.75862417]
[1755192396831,0.5611259,118280.0,118270.0,0.25609272]
[1755192397137,0.5611403,118260.0,118250.0,1.5644129]
[1755192397335,0.5611403,118260.0,118250.0,2.3852129]
[1755192397526,0.5611403,118260.0,118250.0,2.88774435]
[1755192397729,0.5611403,118260.0,118250.0,2.74714435]
[1755192398230,0.5611403,118260.0,118250.0,2.77232593]
[1755192398427,0.1299803,118260.0,118250.0,2.77332593]
[1755192398631,0.78181278,118280.0,118270.0,0.0845131]
[1755192398829,1.0064369,118280.0,118270.0,0.9099531]
[1755192399032,1.0064369,118280.0,118270.0,1.41248455]
[1755192399729,0.6456369,118280.0,118270.0,1.41248455]
[1755192399935,1.0064369,118280.0,118270.0,1.41248455]
[1755192402332,1.06709278,118280.0,118270.0,1.41248455]
[1755192403142,1.0064369,118280.0,118270.0,1.41248455]
[1755192403439,1.08223709,118280.0,118270.0,1.41248455]
[1755192403640,0.73279699,118280.0,118270.0,1.41248455]
[1755192403838,0.85375699,118280.0,118270.0,1.41548455]
[1755192404138,0.16863019,118280.0,118270.0,1.41548455]
[1755192404539,0.12126019,118280.0,118270.0,1.41548455]
[1755192405438,0.55242019,118280.0,118270.0,1.41248455]
[1755192405737,0.47662,118280.0,118270.0,1.41248455]
[1755192405944,0.47662,118280.0,118270.0,1.41548455]
[1755192406640,0.09496266,118290.0,118280.0,0.0875058]
[1755192406945,0.06462247,118290.0,118280.0,0.4531058]
[1755192407143,0.06462247,118290.0,118280.0,1.4581687]
[1755192408145,0.01916247,118290.0,118280.0,0.4531058]
[1755192408445,0.06462247,118290.0,118280.0,1.4581687]
[1755192408755,0.58028117,118290.0,118280.0,1.4581687]
[1755192408948,0.65619359,118290.0,118280.0,1.4581687]
[1755192409536,0.6562073,118290.0,118280.0,0.95263725]
[1755192410846,0.6562073,118290.0,118280.0,0.0893058]
[1755192411148,0.6562073,118290.0,118280.0,1.41171725]
[1755192411149,1.04775914,118290.0,118280.0,1.41171725]
[1755192411337,0.68695914,118290.0,118280.0,1.41171725]
[1755192411734,0.68695914,118290.0,118280.0,1.40691725]
[1755192411943,0.58028117,118290.0,118280.0,1.40691725]
[1755192412249,0.68663187,118290.0,118280.0,1.40691725]
[1755192412542,0.0845058,118280.0,118270.0,0.6988477]
[1755192412743,0.9219258,118280.0,118270.0,0.50253145]
[1755192412953,0.561133,118270.0,118260.0,0.51978603]
[1755192413146,0.561133,118270.0,118260.0,1.42410613]
[1755192414652,0.561133,118270.0,118260.0,1.6266645]
[1755192415041,0.561133,118270.0,118260.0,0.92257468]
[1755192415247,0.561133,118270.0,118260.0,1.6286645]
[1755192415448,0.62849764,118270.0,118260.0,1.6286645]
[1755192416142,0.98929764,118270.0,118260.0,1.6286645]